Department Family,Entity,Date Paid,Expense Type,Expense Area,Supplier Name,Transaction Reference,Analysed Gross,,Transaction Reference,Sub Ledger Code,Date Paid,Supplier Code,Supplier Name,Category,Category Description,Fully Settled Transaction Type,Transaction Date,Our Reference,Their Reference,Purchase Order Number,Fully Settled POP or NON POP?,Analysed Gross,Transaction Type,Transaction Status,Discount,Account Code,9AN - Level 9 Account Name,Cost Centre Code,Cost Centre Name,Note,Note 1
Department of Health,Chelsea & Westminster NHS Foundation Trust,01/11/2018,Building Expenditure,Capital Expenditure,Cbre Managed Services Limited,1214719,"138,944.56",,1214719,CL1,01/11/2018,NORLAN01,Cbre Managed Services Limited,CO,NON NHS COMPANY,Invoice,09/04/2018,CHP ENGINE,S00585536,,NON POP,"138,944.56",PI,Fully Settled,0,BLDX,Building Expenditure,CAPEXP,Capital Expenditure,Include,Over 25k
Department of Health,Chelsea & Westminster NHS Foundation Trust,01/11/2018,Drug Purchases,West Middlesex University Hospital,Novartis Pharmaceuticals Uk Limited,1249902,"32,256.00",,1249902,CL1,01/11/2018,NOVAR,Novartis Pharmaceuticals Uk Limited,PH,PHARMACY,Invoice,17/09/2018,WMD0911773,92024640,,NON POP,"32,256.00",PI,Fully Settled,0,8905,Stock - Drug Purchases (Wmuh),40010,Current Assets,Include,Over 25k
Department of Health,Chelsea & Westminster NHS Foundation Trust,01/11/2018,Drugs - H.I.V.,Sexual Health - Sutton,Epsom And St Helier University Hosp Nhs Trust,1256698,"29,227.73",,1256698,CL1,01/11/2018,EPSOM,Epsom And St Helier University Hosp Nhs Trust,NT,NHS TRUST,Invoice,04/10/2018,DRUG COSTS SEPT,19753074,,NON POP,"29,227.73",PI,Fully Settled,0,2607,Drugs - H.I.V.,M70638,Sexual Health - Sutton,Include,Over 25k
Department of Health,Chelsea & Westminster NHS Foundation Trust,01/11/2018,Drug Purchases,Chelsea and Westminster,Bayer Plc,1258997,"26,220.00",,1258997,CL1,01/11/2018,BAYERPHA,Bayer Plc,PH,PHARMACY,Invoice,05/10/2018,CWH1002455,824C158394,,NON POP,"26,220.00",PI,Fully Settled,0,8900,Stock - Drug Purchases (Candw),C00000,Candw Balance Sheet,Include,Over 25k
Department of Health,Chelsea & Westminster NHS Foundation Trust,01/11/2018,Sterile Services Contract,Sterile Services Dept,Ihss Limited,1260230,"40,745.87",,1260230,CL1,01/11/2018,INHEA01,Ihss Limited,CO,NON NHS COMPANY,Invoice,04/10/2018,ISS000023,IHSN010660,,NON POP,"40,745.87",PI,Fully Settled,0,3003,Sterile Services Contract,350998,Sterile Services Dept,Include,Over 25k
Department of Health,Chelsea & Westminster NHS Foundation Trust,01/11/2018,Soft Services,Trust wide services - West Middlesex University Hospital,Iss Mediclean Limited,1260980,"32,150.57",,1260980,CL1,01/11/2018,ISSME,Iss Mediclean Limited,CO,NON NHS COMPANY,Invoice,01/10/2018,C0000858,SI3505735,,NON POP,"32,150.57",PI,Fully Settled,0,4501,Service Charge - Core Pfi,350813,Estate Management Department,Include,Over 25k
Department of Health,Chelsea & Westminster NHS Foundation Trust,01/11/2018,Service Charge - Core Pfi,Pfi Unitary Payment,Bywest Ltd,1261471,"298,182.16",,1261471,CL1,01/11/2018,BYWES,Bywest Ltd,CO,NON NHS COMPANY,Invoice,01/10/2018,FACILITIES MANA,SIN000073,,NON POP,"298,182.16",PI,Fully Settled,0,4501,Service Charge - Core Pfi,340410,Pfi Unitary Payment,Include,Over 25k
Department of Health,Chelsea & Westminster NHS Foundation Trust,01/11/2018,Drug Purchases,Chelsea and Westminster,Csl Behring Uk Ltd,1263252,"45,825.00",,1263252,CL1,01/11/2018,CSLBE,Csl Behring Uk Ltd,PH,PHARMACY,Invoice,04/10/2018,CWH1002413,994002688,,NON POP,"45,825.00",PI,Fully Settled,0,8900,Stock - Drug Purchases (Candw),C00000,Candw Balance Sheet,Include,Over 25k
Department of Health,Chelsea & Westminster NHS Foundation Trust,01/11/2018,Clinical Tests From Non Nhs,34-35 Dean Street,Doctors Laboratory Ltd (The),1264153,"94,050.00",,1264153,CL1,01/11/2018,DOC00399,Doctors Laboratory Ltd (The),CO,NON NHS COMPANY,Invoice,30/09/2018,SERVICE 34 DEAN,IN023740,,NON POP,"94,050.00",PI,Fully Settled,0,7202,Clinical Tests From Non Nhs,M71004,34-35 Dean Street,Include,Over 25k
Department of Health,Chelsea & Westminster NHS Foundation Trust,01/11/2018,Recruitment Expenses,Epr Cross Site Project,Hunter Healthcare Resourcing Ltd,1264843,"37,440.00",,1264843,CL1,01/11/2018,HUNTE03,Hunter Healthcare Resourcing Ltd,CO,NON NHS COMPANY,Invoice,30/09/2018,CW48778,9095A,,NON POP,"37,440.00",PI,Fully Settled,0,5260,Recruitment Expenses,M71700,Epr Cross Site Project,Include,Over 25k
Department of Health,Chelsea & Westminster NHS Foundation Trust,01/11/2018,GP Lead Programme,Medical & Dental Education Levy,Royal Free London Nhs Foundation Trust,1265260,"168,532.00",,1265260,CL1,01/11/2018,ROYALFRE,Royal Free London Nhs Foundation Trust,FT,NHS FOUNDATION TRUST,Invoice,30/09/2018,GP LEAD AUG18,I0165113,,NON POP,"168,532.00",PI,Fully Settled,0,441,Specialty Registrar Ft (Str1),M71293,Madel,Include,Over 25k
Department of Health,Chelsea & Westminster NHS Foundation Trust,01/11/2018,Building Expenditure,Capital Expenditure,Ensigna Construction Ltd,1265935,"202,547.39",,1265935,CL1,01/11/2018,ENS00199,Ensigna Construction Ltd,CO,NON NHS COMPANY,Invoice,11/10/2018,CW72500,2483,CW72500,POP,"202,547.39",PI,Fully Settled,0,BLDX,Building Expenditure,CAPEXP,Capital Expenditure,Include,Over 25k
Department of Health,Chelsea & Westminster NHS Foundation Trust,01/11/2018,M.S.S.E. - Routine Purchases,Estates Facilities Management,Cbre Managed Services Limited,1268086,"358,027.20",,1268086,CL1,01/11/2018,NORLAN01,Cbre Managed Services Limited,CO,NON NHS COMPANY,Invoice,28/09/2018,CE00845,S00622448,CE00845,POP,"358,027.20",PI,Fully Settled,0,2901,M.S.S.E. - Routine Purchases,M70993,Estates Facilities Management,Include,Over 25k
Department of Health,Chelsea & Westminster NHS Foundation Trust,01/11/2018,M.S.S.E. - Routine Purchases,Estates Facilities Management,Cbre Managed Services Limited,1268292,"(358,027.20)",,1268292,CL1,01/11/2018,NORLAN01,Cbre Managed Services Limited,CO,NON NHS COMPANY,Credit,28/09/2018,CE00845,S00622448A,CE00845,POP,"(358,027.20)",PC,Fully Settled,0,2901,M.S.S.E. - Routine Purchases,M70993,Estates Facilities Management,Include,Over 25k
Department of Health,Chelsea & Westminster NHS Foundation Trust,01/11/2018,M.S.S.E. - Routine Purchases,Estates Facilities Management,Cbre Managed Services Limited,1268293,"358,027.20",,1268293,CL1,01/11/2018,NORLAN01,Cbre Managed Services Limited,CO,NON NHS COMPANY,Invoice,28/09/2018,CE00845,S00622448B,CE00845,POP,"358,027.20",PI,Fully Settled,0,2901,M.S.S.E. - Routine Purchases,M70993,Estates Facilities Management,Include,Over 25k
Department of Health,Chelsea & Westminster NHS Foundation Trust,01/11/2018,Rates & Rents - Residences,Sexual Health Hounslow,Nhs Property Services,859124,"40,733.79",,859124,CL1,01/11/2018,NHSPR02,Nhs Property Services,NM,NHS MISCELLANEOUS,Invoice,15/10/2015,FELTHAM Q1-3 RE,48374875,,NON POP,"40,733.79",PI,Fully Settled,0,5812,Rates & Rents - Residences,230171,Sexual Health Hounslow,Include,Over 25k
Department of Health,Chelsea & Westminster NHS Foundation Trust,06/11/2018,Building Expenditure,Capital Expenditure,Pressure Test Limited,1254208,"39,999.00",,1254208,CL1,06/11/2018,PRE01599,Pressure Test Limited,CO,NON NHS COMPANY,Invoice,21/09/2018,PT18-22,8499-3,,NON POP,"39,999.00",PI,Fully Settled,0,BLDX,Building Expenditure,CAPEXP,Capital Expenditure,Include,Over 25k
Department of Health,Chelsea & Westminster NHS Foundation Trust,06/11/2018,General Computer Software,Epr Cross Site Project,Cerner Limited,1260141,"32,098.00",,1260141,CL1,06/11/2018,CER00199,Cerner Limited,CO,NON NHS COMPANY,Invoice,09/10/2018,PROFESSIONAL SE,101477911,,NON POP,"32,098.00",PI,Fully Settled,0,4702,General Computer Software,M71700,Epr Cross Site Project,Include,Over 25k
Department of Health,Chelsea & Westminster NHS Foundation Trust,06/11/2018,General Maintenance Contracts,Path Central Purchasing,Beckman Coulter United Kingdom Ltd,1260461,"60,788.23",,1260461,CL1,06/11/2018,BECKM,Beckman Coulter United Kingdom Ltd,CO,NON NHS COMPANY,Invoice,08/10/2018,CW68388,1419546,CW68388,POP,"60,788.23",PI,Fully Settled,0,3230,General Maintenance Contracts,340310,Path Central Purchasing,Include,Over 25k
Department of Health,Chelsea & Westminster NHS Foundation Trust,06/11/2018,Sterile Services Contract,Sterile Services Dept,Ihss Limited,1264446,"30,811.42",,1264446,CL1,06/11/2018,INHEA01,Ihss Limited,CO,NON NHS COMPANY,Invoice,28/09/2018,ISS000023,IHSN010645,,NON POP,"30,811.42",PI,Fully Settled,0,3003,Sterile Services Contract,350998,Sterile Services Dept,Include,Over 25k
Department of Health,Chelsea & Westminster NHS Foundation Trust,06/11/2018,Typing&Transcription Services,Clin Admin Management Team,Scribetech Uk Ltd,1268383,"32,479.73",,1268383,CL1,06/11/2018,SCR00399,Scribetech Uk Ltd,CO,NON NHS COMPANY,Invoice,01/10/2018,TOTAL LINES OF,1765,,NON POP,"32,479.73",PI,Fully Settled,0,7206,Typing&Transcription Services,M70282,Clin Admin Management Team,Include,Over 25k
Department of Health,Chelsea & Westminster NHS Foundation Trust,06/11/2018,Service Charge - Core Pfi,Pfi Unitary Payment,Bywest Ltd,1269930,"1,435,684.27",,1269930,CL1,06/11/2018,BYWES,Bywest Ltd,CO,NON NHS COMPANY,Invoice,01/11/2018,CE00947,SIN000074,CE00947,POP,"1,435,684.27",PI,Fully Settled,0,4501,Service Charge - Core Pfi,340410,Pfi Unitary Payment,Include,Over 25k
Department of Health,Chelsea & Westminster NHS Foundation Trust,08/11/2018,Electricty,Estates Facilities Management,Edf Energy 1 Ltd,1263112,"218,073.88",,1263112,CL1,08/11/2018,EDF00199,Edf Energy 1 Ltd,CO,NON NHS COMPANY,Invoice,03/10/2018,01 SEP 18-30 SE,4830667,,NON POP,"218,073.88",PI,Fully Settled,0,3711,Electricty,M70993,Estates Facilities Management,Include,Over 25k
Department of Health,Chelsea & Westminster NHS Foundation Trust,08/11/2018,GP Lead Programme,Medical & Dental Education Levy,Royal Free London Nhs Foundation Trust,1265261,"167,000.00",,1265261,CL1,08/11/2018,ROYALFRE,Royal Free London Nhs Foundation Trust,FT,NHS FOUNDATION TRUST,Invoice,10/10/2018,GP LEAD SEP18,I0165700,,NON POP,"167,000.00",PI,Fully Settled,0,441,Specialty Registrar Ft (Str1),M71293,Madel,Include,Over 25k
Department of Health,Chelsea & Westminster NHS Foundation Trust,08/11/2018,Building Expenditure,Capital Expenditure,Phoenix Construction Services Ltd,1265984,"173,280.00",,1265984,CL1,08/11/2018,PHO00399,Phoenix Construction Services Ltd,CO,NON NHS COMPANY,Invoice,25/10/2018,VALUATION NR 22,2018/68,,NON POP,"173,280.00",PI,Fully Settled,0,BLDX,Building Expenditure,CAPEXP,Capital Expenditure,Include,Over 25k
Department of Health,Chelsea & Westminster NHS Foundation Trust,14/11/2018,Legal Fees,Legal Services,Capsticks Solicitors,1243450,"41,149.68",,1243450,CL1,14/11/2018,CAPST01,Capsticks Solicitors,CO,NON NHS COMPANY,Invoice,21/08/2018,2CWH02-1 10456,405910,,NON POP,"41,149.68",PI,Fully Settled,0,6235,Legal Fees,M70902,Legal Services,Include,Over 25k
Department of Health,Chelsea & Westminster NHS Foundation Trust,14/11/2018,Recharge External Non Nhs Org,Ppi Theme Activities,London School Of Hygiene & Tropical,1260568,"38,072.08",,1260568,CL1,14/11/2018,LONDOSCH,London School Of Hygiene & Tropical,PB,NON NHS PUBLIC BODIES,Invoice,21/08/2018,CLAHRC-2 (NW LO,50033031,,NON POP,"38,072.08",PI,Fully Settled,0,RENN,Recharge External Non Nhs Org,M71410,Ppi Theme Activities,Include,Over 25k
Department of Health,Chelsea & Westminster NHS Foundation Trust,14/11/2018,Typing&Transcription Services,Opd Admin Musculo Skeletal,Dscribe Ltd,1260645,"41,731.84",,1260645,CL1,14/11/2018,DSCRI01,Dscribe Ltd,CO,NON NHS COMPANY,Invoice,01/10/2018,TRANSCRIPTION S,C181380,,NON POP,"41,731.84",PI,Fully Settled,0,7206,Typing&Transcription Services,383172,Opd Admin Musculo Skeletal,Include,Over 25k
Department of Health,Chelsea & Westminster NHS Foundation Trust,14/11/2018,Drug Purchases,Chelsea and Westminster,Bayer Plc,1263243,"26,220.00",,1263243,CL1,14/11/2018,BAYERPHA,Bayer Plc,PH,PHARMACY,Invoice,15/10/2018,CWH1008678,824C160520,,NON POP,"26,220.00",PI,Fully Settled,0,8900,Stock - Drug Purchases (Candw),C00000,Candw Balance Sheet,Include,Over 25k
Department of Health,Chelsea & Westminster NHS Foundation Trust,14/11/2018,Sbs Service Charge,Hr Directorate Team - Executiv,Nhs Shared Business Services,1263545,"36,699.10",,1263545,CL1,14/11/2018,NHSSH,Nhs Shared Business Services,NM,NHS MISCELLANEOUS,Invoice,15/10/2018,PAYROLL SERV OC,46838,,NON POP,"36,699.10",PI,Fully Settled,0,4730,Sbs Service Charge,M71263,Hr Directorate Team - Executiv,Include,Over 25k
Department of Health,Chelsea & Westminster NHS Foundation Trust,14/11/2018,Donations & Subscriptions,Womens & Childrens Management,Lumeon Ltd,1264164,"51,840.00",,1264164,CL1,14/11/2018,LUM00399,Lumeon Ltd,CO,NON NHS COMPANY,Invoice,15/10/2018,CW71836,INV6719,CW71836,POP,"51,840.00",PI,Fully Settled,0,6228,Donations & Subscriptions,M70729,Womens & Childrens Management,Include,Over 25k
Department of Health,Chelsea & Westminster NHS Foundation Trust,14/11/2018,Minor Works,Facilities Mgmt,Bywest Ltd,1270244,"32,877.85",,1270244,CL1,14/11/2018,BYWES,Bywest Ltd,CO,NON NHS COMPANY,Invoice,05/11/2018,CE01016,SIN000088,CE01016,POP,"32,877.85",PI,Fully Settled,0,4509,Minor Works,365602,Facilities Mgmt,Include,Over 25k
Department of Health,Chelsea & Westminster NHS Foundation Trust,14/11/2018,Insurance Premiums,Estates Facilities Management,Willis Ltd,1272129,"72,901.07",,1272129,CL1,14/11/2018,WILLI,Willis Ltd,CO,NON NHS COMPANY,Invoice,19/04/2018,AIG EUROPE LIMI,10419GP18,,NON POP,"72,901.07",PI,Fully Settled,0,6290,Insurance Premiums,M70993,Estates Facilities Management,Include,Over 25k
Department of Health,Chelsea & Westminster NHS Foundation Trust,14/11/2018,Building Expenditure,Capital Expenditure,Ensigna Construction Ltd,1272730,"70,758.00",,1272730,CL1,14/11/2018,ENS00199,Ensigna Construction Ltd,CO,NON NHS COMPANY,Invoice,11/10/2018,JOB REF J626,2482,,NON POP,"70,758.00",PI,Fully Settled,0,BLDX,Building Expenditure,CAPEXP,Capital Expenditure,Include,Over 25k
Department of Health,Chelsea & Westminster NHS Foundation Trust,14/11/2018,Building Expenditure,Capital Expenditure,Ensigna Construction Ltd,1272731,"40,921.64",,1272731,CL1,14/11/2018,ENS00199,Ensigna Construction Ltd,CO,NON NHS COMPANY,Invoice,12/09/2018,JOB REF J626,2436,,NON POP,"40,921.64",PI,Fully Settled,0,BLDX,Building Expenditure,CAPEXP,Capital Expenditure,Include,Over 25k
Department of Health,Chelsea & Westminster NHS Foundation Trust,14/11/2018,Drug Purchases,Chelsea and Westminster,St George'S University Hospitals Nhs Ft,1272853,"123,444.00",,1272853,CL1,14/11/2018,STGEO,St George'S University Hospitals Nhs Ft,FT,NHS FOUNDATION TRUST,Invoice,12/10/2018,CWH0927209,6442732,,NON POP,"123,444.00",PI,Fully Settled,0,8900,Stock - Drug Purchases (Candw),C00000,Candw Balance Sheet,Include,Over 25k
Department of Health,Chelsea & Westminster NHS Foundation Trust,14/11/2018,Drug Purchases,Chelsea and Westminster,St George'S University Hospitals Nhs Ft,1272855,"25,108.20",,1272855,CL1,14/11/2018,STGEO,St George'S University Hospitals Nhs Ft,FT,NHS FOUNDATION TRUST,Invoice,12/10/2018,CWH0918734,6442731,,NON POP,"25,108.20",PI,Fully Settled,0,8900,Stock - Drug Purchases (Candw),C00000,Candw Balance Sheet,Include,Over 25k
Department of Health,Chelsea & Westminster NHS Foundation Trust,15/11/2018,P.T.S. - Main Contract,Trust General Services,Hats Group Ltd,1260302,"65,538.68",,1260302,CL1,15/11/2018,OLYMP03,Hats Group Ltd,CO,NON NHS COMPANY,Invoice,30/09/2018,Sep-18,204340,,NON POP,"65,538.68",PI,Fully Settled,0,5310,P.T.S. - Main Contract,M70992,Trust General Services,Include,Over 25k
Department of Health,Chelsea & Westminster NHS Foundation Trust,15/11/2018,Drug Purchases,Chelsea and Westminster,St George'S University Hospitals Nhs Ft,1264385,"55,549.80",,1264385,CL1,15/11/2018,STGEO,St George'S University Hospitals Nhs Ft,FT,NHS FOUNDATION TRUST,Invoice,04/09/2018,CWH0731766,6440503,,NON POP,"55,549.80",PI,Fully Settled,0,8900,Stock - Drug Purchases (Candw),C00000,Candw Balance Sheet,Include,Over 25k
Department of Health,Chelsea & Westminster NHS Foundation Trust,15/11/2018,Drugs - H.I.V.,Hiv - Herts,West Hertfordshire Hospitals Nhs Trust,1265086,"355,893.79",,1265086,CL1,15/11/2018,WESTHERT,West Hertfordshire Hospitals Nhs Trust,NT,NHS TRUST,Invoice,19/10/2018,PHARMACY DRUGS,256768,,NON POP,"355,893.79",PI,Fully Settled,0,2607,Drugs - H.I.V.,M70636,Hiv - Herts,Include,Over 25k
Department of Health,Chelsea & Westminster NHS Foundation Trust,15/11/2018,Typing&Transcription Services,General Medicine Management,Scribetech Uk Ltd,1268385,"28,328.06",,1268385,CL1,15/11/2018,SCR00399,Scribetech Uk Ltd,CO,NON NHS COMPANY,Invoice,01/10/2018,TOTAL LINES OF,1764,,NON POP,"28,328.06",PI,Fully Settled,0,7206,Typing&Transcription Services,M70004,General Medicine Management,Include,Over 25k
Department of Health,Chelsea & Westminster NHS Foundation Trust,15/11/2018,Building Expenditure,Capital Expenditure,Ensigna Construction Ltd,1272631,"144,684.79",,1272631,CL1,15/11/2018,ENS00199,Ensigna Construction Ltd,CO,NON NHS COMPANY,Invoice,07/09/2018,5TH FLOOR DOMES,2424,,NON POP,"144,684.79",PI,Fully Settled,0,BLDX,Building Expenditure,CAPEXP,Capital Expenditure,Include,Over 25k
Department of Health,Chelsea & Westminster NHS Foundation Trust,16/11/2018,Electricty,Trust General Services,Corona Energy Retail 4 Ltd,1264561,"58,244.54",,1264561,CL1,16/11/2018,COR00499,Corona Energy Retail 4 Ltd,CO,NON NHS COMPANY,Invoice,10/09/2018,20407355,13391052B,,NON POP,"58,244.54",PI,Fully Settled,0,3711,Electricty,M70992,Trust General Services,Include,Over 25k
Department of Health,Chelsea & Westminster NHS Foundation Trust,16/11/2018,Electricty,Trust General Services,Corona Energy Retail 4 Ltd,1264866,"(58,244.54)",,1264866,CL1,16/11/2018,COR00499,Corona Energy Retail 4 Ltd,CO,NON NHS COMPANY,Credit,10/09/2018,20407355,13391052C,,NON POP,"(58,244.54)",PC,Fully Settled,0,3711,Electricty,M70992,Trust General Services,Include,Over 25k
Department of Health,Chelsea & Westminster NHS Foundation Trust,20/11/2018,Drug Purchases,West Middlesex University Hospital,Berendsen Uk Ltd,1189400,"94,486.39",,1189400,CL1,20/11/2018,BEREN,Berendsen Uk Ltd,CO,NON NHS COMPANY,Invoice,01/04/2018,FIXED ISSUE,SN2841949,,NON POP,"94,486.39",PI,Fully Settled,0,8905,Stock - Drug Purchases (Wmuh),40010,Current Assets,Include,Over 25k
Department of Health,Chelsea & Westminster NHS Foundation Trust,20/11/2018,M.S.S.E. - ROUTINE PURCHASES,Trustwide,Nhs Supply Chain,1267222,"82,309.98",,1267222,CL1,20/11/2018,SUP00297,Nhs Supply Chain,CO,NON NHS COMPANY,Invoice,26/10/2018,ALL NHS PRODUCT,1019147439,,NON POP,"82,309.98",PI,Fully Settled,0,9996,Stores Control Account (Candw),C00000,Candw Balance Sheet,Include,Over 25k
Department of Health,Chelsea & Westminster NHS Foundation Trust,20/11/2018,Agency Nurse - Band 5,Central Nursing Agency,Care Providers Recruitment Ltd,1267575,"190,874.08",,1267575,CL1,20/11/2018,CAREP02,Care Providers Recruitment Ltd,AG,AGENCY,Invoice,22/10/2018,WEEK ENDING 21,CH463,,NON POP,"190,874.08",PI,Fully Settled,0,ACD5,Agency Nurse - Band 5,M70784,Central Nursing Agency,Include,Over 25k
Department of Health,Chelsea & Westminster NHS Foundation Trust,20/11/2018,M.S.S.E. - ROUTINE PURCHASES,Trustwide,Nhs Supply Chain,1270079,"145,709.19",,1270079,CL1,20/11/2018,SUP00297,Nhs Supply Chain,CO,NON NHS COMPANY,Invoice,02/11/2018,ALL NHS PRODUCT,1019154790,,NON POP,"145,709.19",PI,Fully Settled,0,9996,Stores Control Account (Candw),C00000,Candw Balance Sheet,Include,Over 25k
Department of Health,Chelsea & Westminster NHS Foundation Trust,20/11/2018,M.S.S.E. - ROUTINE PURCHASES,Trustwide,Nhs Supply Chain,1270080,"93,159.01",,1270080,CL1,20/11/2018,SUP00297,Nhs Supply Chain,CO,NON NHS COMPANY,Invoice,02/11/2018,ALL NHS PRODUCT,1019150843,,NON POP,"93,159.01",PI,Fully Settled,0,9996,Stores Control Account (Candw),C00000,Candw Balance Sheet,Include,Over 25k
Department of Health,Chelsea & Westminster NHS Foundation Trust,20/11/2018,Agency Nurse - Band 5,Central Nursing Agency,Care Providers Recruitment Ltd,1271117,"25,153.74",,1271117,CL1,20/11/2018,CAREP02,Care Providers Recruitment Ltd,AG,AGENCY,Invoice,29/10/2018,AGENCY INVOICE,WM470,,NON POP,"25,153.74",PI,Fully Settled,0,ACD5,Agency Nurse - Band 5,M70784,Central Nursing Agency,Include,Over 25k
Department of Health,Chelsea & Westminster NHS Foundation Trust,20/11/2018,Agency Nurse - Band 5,Central Nursing Agency,Care Providers Recruitment Ltd,1271118,"191,606.66",,1271118,CL1,20/11/2018,CAREP02,Care Providers Recruitment Ltd,AG,AGENCY,Invoice,29/10/2018,AGENCY INVOICE,CH469,,NON POP,"191,606.66",PI,Fully Settled,0,ACD5,Agency Nurse - Band 5,M70784,Central Nursing Agency,Include,Over 25k
Department of Health,Chelsea & Westminster NHS Foundation Trust,20/11/2018,Training,Epr Cross Site Project,Ideal Health Consultants Limited,1272715,"38,152.12",,1272715,CL1,20/11/2018,IDE00699,Ideal Health Consultants Limited,CO,NON NHS COMPANY,Invoice,12/11/2018,SEP 2018 (ADDIT,5979,,NON POP,"38,152.12",PI,Fully Settled,0,7557,Training,M71700,Epr Cross Site Project,Include,Over 25k
Department of Health,Chelsea & Westminster NHS Foundation Trust,20/11/2018,Agency Nurse - Band 5,Central Nursing Agency,Care Providers Recruitment Ltd,1272951,"(90,158.86)",,1272951,CL1,20/11/2018,CAREP02,Care Providers Recruitment Ltd,AG,AGENCY,Credit,24/09/2018,AGENCY INVOICE,WM440AC,,NON POP,"(90,158.86)",PC,Fully Settled,0,ACD5,Agency Nurse - Band 5,M70784,Central Nursing Agency,Include,Over 25k
Department of Health,Chelsea & Westminster NHS Foundation Trust,20/11/2018,Agency Nurse - Band 5,Central Nursing Agency,Care Providers Recruitment Ltd,1272976,"(90,158.86)",,1272976,CL1,20/11/2018,CAREP02,Care Providers Recruitment Ltd,AG,AGENCY,Credit,24/09/2018,AGENCY INVOICE,WM440IC,,NON POP,"(90,158.86)",PC,Fully Settled,0,ACD5,Agency Nurse - Band 5,M70784,Central Nursing Agency,Include,Over 25k
Department of Health,Chelsea & Westminster NHS Foundation Trust,20/11/2018,Agency Nurse - Band 5,Central Nursing Agency,Care Providers Recruitment Ltd,1273394,"27,178.43",,1273394,CL1,20/11/2018,CAREP02,Care Providers Recruitment Ltd,AG,AGENCY,Invoice,05/11/2018,AGENCY INVOICE,WM476,,NON POP,"27,178.43",PI,Fully Settled,0,ACD5,Agency Nurse - Band 5,M70784,Central Nursing Agency,Include,Over 25k
Department of Health,Chelsea & Westminster NHS Foundation Trust,20/11/2018,Agency Nurse - Band 5,Central Nursing Agency,Care Providers Recruitment Ltd,1273396,"164,653.38",,1273396,CL1,20/11/2018,CAREP02,Care Providers Recruitment Ltd,AG,AGENCY,Invoice,05/11/2018,AGENCY INVOICE,CH475,,NON POP,"164,653.38",PI,Fully Settled,0,ACD5,Agency Nurse - Band 5,M70784,Central Nursing Agency,Include,Over 25k
Department of Health,Chelsea & Westminster NHS Foundation Trust,20/11/2018,Drug Purchases,West Middlesex University Hospital,Berendsen Uk Ltd,1273449,"(94,486.39)",,1273449,CL1,20/11/2018,BEREN,Berendsen Uk Ltd,CO,NON NHS COMPANY,Credit,01/04/2018,FIXED ISSUE,SN2841949A,,NON POP,"(94,486.39)",PC,Fully Settled,0,8905,Stock - Drug Purchases (Wmuh),40010,Current Assets,Include,Over 25k
Department of Health,Chelsea & Westminster NHS Foundation Trust,22/11/2018,Legal Fees,Legal Services,Capsticks Solicitors,1234222,"29,665.32",,1234222,CL1,22/11/2018,CAPST01,Capsticks Solicitors,CO,NON NHS COMPANY,Invoice,27/07/2018,2CWH02-049929,404025,,NON POP,"29,665.32",PI,Fully Settled,0,6235,Legal Fees,M70902,Legal Services,Include,Over 25k
Department of Health,Chelsea & Westminster NHS Foundation Trust,22/11/2018,M.S.S.E. - ROUTINE PURCHASES,Trustwide,Nhs Supply Chain,1264903,"63,365.32",,1264903,CL1,22/11/2018,SUP00297,Nhs Supply Chain,CO,NON NHS COMPANY,Invoice,23/10/2018,CW72245,2019003238,CW72245,POP,"63,365.32",PI,Fully Settled,0,3051,X-Ray Equipment Contracts,340258,Radiology Department,Include,Over 25k
Department of Health,Chelsea & Westminster NHS Foundation Trust,22/11/2018,General Maintenance Contracts,Decontamination Services Dept,Nhs Logistics Authority Maintenance,1265942,"115,989.16",,1265942,CL1,22/11/2018,NHS**LOG,Nhs Logistics Authority Maintenance,CO,NON NHS COMPANY,Invoice,24/10/2018,CW72349,2019003261,CW72349,POP,"115,989.16",PI,Fully Settled,0,3230,General Maintenance Contracts,M70158,Decontamination Services Dept,Include,Over 25k
Department of Health,Chelsea & Westminster NHS Foundation Trust,22/11/2018,Intangible Expenditure,Capital Expenditure,Ivf Solutions Limited,1266774,"80,280.00",,1266774,CL1,22/11/2018,IVF00399,Ivf Solutions Limited,CO,NON NHS COMPANY,Invoice,25/10/2018,CW72277,INV-0131,CW72277,POP,"80,280.00",PI,Fully Settled,0,INTX,Intangible Expenditure,CAPEXP,Capital Expenditure,Include,Over 25k
Department of Health,Chelsea & Westminster NHS Foundation Trust,22/11/2018,Drug Purchases,Chelsea and Westminster,Gilead Sciences Ltd,1267035,"27,993.60",,1267035,CL1,22/11/2018,GILEA,Gilead Sciences Ltd,PH,PHARMACY,Invoice,24/10/2018,CWH1017283,4410149931,,NON POP,"27,993.60",PI,Fully Settled,0,8900,Stock - Drug Purchases (Candw),C00000,Candw Balance Sheet,Include,Over 25k
Department of Health,Chelsea & Westminster NHS Foundation Trust,22/11/2018,Advertising - Nursing,Director Of Nursing,Medox Paramedical Ltd T/ S  Drake Medox,1267379,"44,000.00",,1267379,CL1,22/11/2018,DRAKEMED,Medox Paramedical Ltd T/ S  Drake Medox,CO,NON NHS COMPANY,Invoice,26/10/2018,CW32261,302967,CW32261,POP,"44,000.00",PI,Fully Settled,0,5220,Advertising - Nursing,450604,Director Of Nursing,Include,Over 25k
Department of Health,Chelsea & Westminster NHS Foundation Trust,22/11/2018,Drug Purchases,Chelsea and Westminster,Gilead Sciences Ltd,1267509,"27,900.00",,1267509,CL1,22/11/2018,GILEA,Gilead Sciences Ltd,PH,PHARMACY,Invoice,26/10/2018,CWH1024787,4410150072,,NON POP,"27,900.00",PI,Fully Settled,0,8900,Stock - Drug Purchases (Candw),C00000,Candw Balance Sheet,Include,Over 25k
Department of Health,Chelsea & Westminster NHS Foundation Trust,22/11/2018,Ice Support,Information Technology Dept,Clinisys Solutions Ltd,1267878,"64,071.60",,1267878,CL1,22/11/2018,CLINIS,Clinisys Solutions Ltd,CO,NON NHS COMPANY,Invoice,24/10/2018,CW72357,24191,CW72357,POP,"64,071.60",PI,Fully Settled,0,4754,Ice Support,349925,Information Technology Dept,Include,Over 25k
Department of Health,Chelsea & Westminster NHS Foundation Trust,22/11/2018,M.S.S.E. - Maintenance,Clinical Engineering,Philips Healthcare,1270005,"93,384.91",,1270005,CL1,22/11/2018,PHILIMED,Philips Healthcare,CO,NON NHS COMPANY,Invoice,26/10/2018,CW70606,7300294583,CW70606,POP,"93,384.91",PI,Fully Settled,0,2950,M.S.S.E. - Maintenance,M71006,Clinical Engineering,Include,Over 25k
Department of Health,Chelsea & Westminster NHS Foundation Trust,22/11/2018,Cw Other Liabilities Mess Fund,Chelsea and Westminster Hospital,The Natural History Museum Trading Comp. Ltd,1271992,"26,440.00",,1271992,CL1,22/11/2018,NATUR01,The Natural History Museum Trading Comp. Ltd,CO,NON NHS COMPANY,Invoice,07/11/2018,CW73056,6849,CW73056,POP,"26,440.00",PI,Fully Settled,0,9905,Cw Other Liabilities Mess Fund,C00000,Candw Balance Sheet,Include,Over 25k
Department of Health,Chelsea & Westminster NHS Foundation Trust,22/11/2018,P.T.S. - Main Contract,Trust General Services,Hats Group Ltd,1272055,"70,373.47",,1272055,CL1,22/11/2018,OLYMP03,Hats Group Ltd,CO,NON NHS COMPANY,Invoice,31/10/2018,Oct-18,204803,,NON POP,"70,373.47",PI,Fully Settled,0,5310,P.T.S. - Main Contract,M70992,Trust General Services,Include,Over 25k
Department of Health,Chelsea & Westminster NHS Foundation Trust,26/11/2018,M.S.S.E. - Routine Purchases,Path Central Purchasing,Nhs Blood Transplant,1261399,"57,606.79",,1261399,CL1,26/11/2018,NATIOBLO,Nhs Blood Transplant,NM,NHS MISCELLANEOUS,Invoice,15/10/2018,CW64645,874840,CW64645,POP,"57,606.79",PI,Fully Settled,0,2901,M.S.S.E. - Routine Purchases,340310,Path Central Purchasing,Include,Over 25k
Department of Health,Chelsea & Westminster NHS Foundation Trust,26/11/2018,M.S.S.E. - ROUTINE PURCHASES,Trustwide,Nhs Supply Chain,1277887,"130,386.42",,1277887,CL1,26/11/2018,SUP00297,Nhs Supply Chain,CO,NON NHS COMPANY,Invoice,23/11/2018,AIL NHS PRODUCT,INVOICE,,NON POP,"130,386.42",PI,Fully Settled,0,9996,Stores Control Account (Candw),C00000,Candw Balance Sheet,Include,Over 25k
Department of Health,Chelsea & Westminster NHS Foundation Trust,26/11/2018,M.S.S.E. - ROUTINE PURCHASES,Trustwide,Nhs Supply Chain,1277889,"(130,386.42)",,1277889,CL1,26/11/2018,SUP00297,Nhs Supply Chain,CO,NON NHS COMPANY,Credit,23/11/2018,AIL NHS PRODUCT,INVOICEA,,NON POP,"(130,386.42)",PC,Fully Settled,0,9996,Stores Control Account (Candw),C00000,Candw Balance Sheet,Include,Over 25k
Department of Health,Chelsea & Westminster NHS Foundation Trust,26/11/2018,M.S.S.E. - ROUTINE PURCHASES,Trustwide,Nhs Supply Chain,1277910,"130,386.42",,1277910,CL1,26/11/2018,SUP00297,Nhs Supply Chain,CO,NON NHS COMPANY,Invoice,23/11/2018,ALL NHS PRODUCT,1019167432,,NON POP,"130,386.42",PI,Fully Settled,0,9996,Stores Control Account (Candw),C00000,Candw Balance Sheet,Include,Over 25k
Department of Health,Chelsea & Westminster NHS Foundation Trust,26/11/2018,M.S.S.E. - ROUTINE PURCHASES,Trustwide,Nhs Supply Chain,1278000,"(130,386.42)",,1278000,CL1,26/11/2018,SUP00297,Nhs Supply Chain,CO,NON NHS COMPANY,Credit,23/11/2018,ALL NHS PRODUCT,1019167432A,,NON POP,"(130,386.42)",PC,Fully Settled,0,9996,Stores Control Account (Candw),C00000,Candw Balance Sheet,Include,Over 25k
Department of Health,Chelsea & Westminster NHS Foundation Trust,28/11/2018,Telephones - Private Circuits,Trust General Services,Imperial College Healthcare Nhs Trust,1260563,"52,311.23",,1260563,CL1,28/11/2018,IMPER01,Imperial College Healthcare Nhs Trust,NT,NHS TRUST,Invoice,08/10/2018,THAMESNET NETWO,H0165628,,NON POP,"52,311.23",PI,Fully Settled,0,5135,Telephones - Private Circuits,M70992,Trust General Services,Include,Over 25k
Department of Health,Chelsea & Westminster NHS Foundation Trust,28/11/2018,Advertising - Nursing,Director Of Nursing,Hcl Permanent Ltd,1261170,"(27,000.00)",,1261170,CL1,28/11/2018,HCL00499,Hcl Permanent Ltd,CO,NON NHS COMPANY,Credit,12/10/2018,CW25699,10880,CW25699,POP,"(27,000.00)",PC,Fully Settled,0,5220,Advertising - Nursing,450604,Director Of Nursing,Include,Over 25k
Department of Health,Chelsea & Westminster NHS Foundation Trust,28/11/2018,M.S.S.E. - ROUTINE PURCHASES,Trustwide,Nhs Supply Chain,1267223,"132,084.92",,1267223,CL1,28/11/2018,SUP00297,Nhs Supply Chain,CO,NON NHS COMPANY,Invoice,26/10/2018,ALL NHS PRODUCT,1019146794,,NON POP,"132,084.92",PI,Fully Settled,0,9996,Stores Control Account (Candw),C00000,Candw Balance Sheet,Include,Over 25k
Department of Health,Chelsea & Westminster NHS Foundation Trust,28/11/2018,Photocopying Services,Information Technology Dept,Hp Inc. Uk Limited,1267870,"33,377.54",,1267870,CL1,28/11/2018,HPINC,Hp Inc. Uk Limited,CO,NON NHS COMPANY,Invoice,23/10/2018,CW61606,8058186,CW61606,POP,"33,377.54",PI,Fully Settled,0,4805,Photocopying Services,349925,Information Technology Dept,Include,Over 25k
Department of Health,Chelsea & Westminster NHS Foundation Trust,28/11/2018,Office Equip. - Hire,Ict Management,Xerox Uk Ltd (Nhs Print Products Only),1268426,"30,978.80",,1268426,CL1,28/11/2018,XEROX01,Xerox Uk Ltd (Nhs Print Products Only),CO,NON NHS COMPANY,Invoice,01/11/2018,445540,900179381,,NON POP,"30,978.80",PI,Fully Settled,0,4803,Office Equip. - Hire,M71021,Ict Management,Include,Over 25k
Department of Health,Chelsea & Westminster NHS Foundation Trust,28/11/2018,Building Expenditure,Capital Expenditure,Metromec Services & Maintenance Ltd,1268901,"50,640.00",,1268901,CL1,28/11/2018,MET00299,Metromec Services & Maintenance Ltd,CO,NON NHS COMPANY,Invoice,31/10/2018,PIPEWORK,3688,,NON POP,"50,640.00",PI,Fully Settled,0,BLDX,Building Expenditure,CAPEXP,Capital Expenditure,Include,Over 25k
Department of Health,Chelsea & Westminster NHS Foundation Trust,28/11/2018,M.S.S.E. - Routine Purchases,Respiratory - Management,Baywater Healthcare Uk Ltd,1268975,"25,455.41",,1268975,CL1,28/11/2018,BAY00299,Baywater Healthcare Uk Ltd,CO,NON NHS COMPANY,Invoice,31/10/2018,CW64900,201247,CW64900,POP,"25,455.41",PI,Fully Settled,0,2901,M.S.S.E. - Routine Purchases,M70031,Respiratory - Management,Include,Over 25k
Department of Health,Chelsea & Westminster NHS Foundation Trust,28/11/2018,M.S.S.E. - Routine Purchases,Estates Facilities Management,Jca Engineering Limited,1268985,"402,586.15",,1268985,CL1,28/11/2018,JCA00199,Jca Engineering Limited,CO,NON NHS COMPANY,Invoice,31/10/2018,PROJECT OPP6205,INV-N10002,,NON POP,"402,586.15",PI,Fully Settled,0,2901,M.S.S.E. - Routine Purchases,M70993,Estates Facilities Management,Include,Over 25k
Department of Health,Chelsea & Westminster NHS Foundation Trust,28/11/2018,Service Charge - Core Pfi,Pfi Unitary Payment,Bywest Ltd,1269929,"358,428.71",,1269929,CL1,28/11/2018,BYWES,Bywest Ltd,CO,NON NHS COMPANY,Invoice,01/11/2018,FACILITIES MANA,SIN000075,,NON POP,"358,428.71",PI,Fully Settled,0,4501,Service Charge - Core Pfi,340410,Pfi Unitary Payment,Include,Over 25k
Department of Health,Chelsea & Westminster NHS Foundation Trust,28/11/2018,M.R.I. Scans,Radiology:- Other Scanning,Alliance Medical Limited,1270156,"171,227.51",,1270156,CL1,28/11/2018,ALLIA,Alliance Medical Limited,CO,NON NHS COMPANY,Invoice,31/10/2018,DWES017,AML-111006,,NON POP,"171,227.51",PI,Fully Settled,0,3094,M.R.I. Scans,340256,Radiology:- Other Scanning,Include,Over 25k
Department of Health,Chelsea & Westminster NHS Foundation Trust,28/11/2018,Other Expenses,Epr Cross Site Project,Cloud 21 Limited,1270179,"58,824.00",,1270179,CL1,28/11/2018,CLO00299,Cloud 21 Limited,CO,NON NHS COMPANY,Invoice,31/10/2018,CW71591,2054,CW71591,POP,"58,824.00",PI,Fully Settled,0,6299,Other Expenses,M71700,Epr Cross Site Project,Include,Over 25k
Department of Health,Chelsea & Westminster NHS Foundation Trust,28/11/2018,Services From Non Nhs Org,Pharmacy Outpatients,Boots Uk Ltd,1270193,"40,225.44",,1270193,CL1,28/11/2018,BOO00298,Boots Uk Ltd,PH,PHARMACY,Invoice,01/11/2018,ADD DISP FEE,9224-1800023395,,NON POP,"40,225.44",PI,Fully Settled,0,7204,Services From Non Nhs Org,M70354,Pharmacy Outpatients,Include,Over 25k
Department of Health,Chelsea & Westminster NHS Foundation Trust,28/11/2018,Drug Purchases,Chelsea and Westminster,Boots Uk Ltd,1270200,"1,664,476.23",,1270200,CL1,28/11/2018,BOO00298,Boots Uk Ltd,PH,PHARMACY,Invoice,01/11/2018,DRUG RECHARGE,9224-1800023393,,NON POP,"1,664,476.23",PI,Fully Settled,0,8901,Cw Drugs,C00000,Candw Balance Sheet,Include,Over 25k
Department of Health,Chelsea & Westminster NHS Foundation Trust,28/11/2018,Drug Purchases,Chelsea and Westminster,Boots Uk Ltd,1270240,"1,514,083.55",,1270240,CL1,28/11/2018,BOO00298,Boots Uk Ltd,PH,PHARMACY,Invoice,01/11/2018,DRUG RECHARGE,9224-1800023390,,NON POP,"1,514,083.55",PI,Fully Settled,0,8901,Cw Drugs,C00000,Candw Balance Sheet,Include,Over 25k
Department of Health,Chelsea & Westminster NHS Foundation Trust,28/11/2018,Non-Nhs Contracts,Epr Cross Site Project,Cerner Limited,1270690,"32,098.00",,1270690,CL1,28/11/2018,CER00199,Cerner Limited,CO,NON NHS COMPANY,Invoice,02/11/2018,CW36013,101488966,CW36013,POP,"32,098.00",PI,Fully Settled,0,3190,Non-Nhs Contracts,M71700,Epr Cross Site Project,Include,Over 25k
Department of Health,Chelsea & Westminster NHS Foundation Trust,28/11/2018,Non-Nhs Contracts,Epr Cross Site Project,Cerner Limited,1270693,"2,408,422.20",,1270693,CL1,28/11/2018,CER00199,Cerner Limited,CO,NON NHS COMPANY,Invoice,02/11/2018,CW36013,101488964,CW36013,POP,"2,408,422.20",PI,Fully Settled,0,3190,Non-Nhs Contracts,M71700,Epr Cross Site Project,Include,Over 25k
Department of Health,Chelsea & Westminster NHS Foundation Trust,28/11/2018,Advertising - Nursing,Director Of Nursing,Medox Paramedical Ltd T/ S  Drake Medox,1270708,"41,716.32",,1270708,CL1,28/11/2018,DRAKEMED,Medox Paramedical Ltd T/ S  Drake Medox,CO,NON NHS COMPANY,Invoice,02/11/2018,CW32261,302977,CW32261,POP,"41,716.32",PI,Fully Settled,0,5220,Advertising - Nursing,450604,Director Of Nursing,Include,Over 25k
Department of Health,Chelsea & Westminster NHS Foundation Trust,28/11/2018,Electricty,Estates Facilities Management,Edf Energy 1 Ltd,1270830,"167,553.04",,1270830,CL1,28/11/2018,EDF00199,Edf Energy 1 Ltd,CO,NON NHS COMPANY,Invoice,02/11/2018,01 OCT 18 - 31,4955335,,NON POP,"167,553.04",PI,Fully Settled,0,3711,Electricty,M70993,Estates Facilities Management,Include,Over 25k
Department of Health,Chelsea & Westminster NHS Foundation Trust,28/11/2018,Soft Services,Trust wide services - West Middlesex University Hospital,Iss Mediclean Limited,1272674,"32,150.57",,1272674,CL1,28/11/2018,ISSME,Iss Mediclean Limited,CO,NON NHS COMPANY,Invoice,01/11/2018,C0000858,SI3507043,,NON POP,"32,150.57",PI,Fully Settled,0,4501,Service Charge - Core Pfi,350813,Estate Management Department,Include,Over 25k
Department of Health,Chelsea & Westminster NHS Foundation Trust,28/11/2018,General Maintenance Contracts,Resourcing,Specialist Computer Centres Plc,1272711,"25,452.00",,1272711,CL1,28/11/2018,SPECICOM,Specialist Computer Centres Plc,CO,NON NHS COMPANY,Invoice,01/11/2018,CW69506,OP/M508565,CW69506,POP,"25,452.00",PI,Fully Settled,0,3230,General Maintenance Contracts,M71266,Resourcing,Include,Over 25k
Department of Health,Chelsea & Westminster NHS Foundation Trust,28/11/2018,Non-Nhs Contracts,Radiology Department,Medica Reporting Ltd (Medica Group),1272712,"37,780.21",,1272712,CL1,28/11/2018,MEDIC02,Medica Reporting Ltd (Medica Group),CO,NON NHS COMPANY,Invoice,31/10/2018,NIGHTHAWK CONSU,12344,,NON POP,"37,780.21",PI,Fully Settled,0,3190,Non-Nhs Contracts,340258,Radiology Department,Include,Over 25k
Department of Health,Chelsea & Westminster NHS Foundation Trust,28/11/2018,Photocopying Services,Information Technology Dept,Hp Inc. Uk Limited,1273432,"33,052.42",,1273432,CL1,28/11/2018,HPINC,Hp Inc. Uk Limited,CO,NON NHS COMPANY,Invoice,25/10/2018,CW61606,8058469,CW61606,POP,"33,052.42",PI,Fully Settled,0,4805,Photocopying Services,349925,Information Technology Dept,Include,Over 25k
Department of Health,Chelsea & Westminster NHS Foundation Trust,28/11/2018,Photocopying Services,Information Technology Dept,Hp Inc. Uk Limited,1273433,"33,814.69",,1273433,CL1,28/11/2018,HPINC,Hp Inc. Uk Limited,CO,NON NHS COMPANY,Invoice,25/10/2018,CW61606,8058694,CW61606,POP,"33,814.69",PI,Fully Settled,0,4805,Photocopying Services,349925,Information Technology Dept,Include,Over 25k
Department of Health,Chelsea & Westminster NHS Foundation Trust,28/11/2018,Telephones - Private Circuits,Telephones: Rental & Calls,Virgin Media Business (Account 921371),1274922,"33,622.80",,1274922,CL1,28/11/2018,VIRGI02,Virgin Media Business (Account 921371),CO,NON NHS COMPANY,Invoice,01/11/2018,921371,921371-088,,NON POP,"33,622.80",PI,Fully Settled,0,5135,Telephones - Private Circuits,350591,Telephones: Rental & Calls,Include,Over 25k
Department of Health,Chelsea & Westminster NHS Foundation Trust,28/11/2018,It Shared Service,Ict - Shared Services Project,Sphere Systems Powering Healthcare Ltd,1277475,"501,354.10",,1277475,CL1,28/11/2018,SPH00199,Sphere Systems Powering Healthcare Ltd,CO,NON NHS COMPANY,Invoice,05/11/2018,CW64642,INV_S000576,CW64642,POP,"501,354.10",PI,Fully Settled,0,4710,It Shared Service,M71027,Ict - Shared Services Project,Include,Over 25k
Department of Health,Chelsea & Westminster NHS Foundation Trust,28/11/2018,General Maintenance Contracts,Ict - Shared Services Project,Sphere Systems Powering Healthcare Ltd,1277765,"34,285.03",,1277765,CL1,28/11/2018,SPH00199,Sphere Systems Powering Healthcare Ltd,CO,NON NHS COMPANY,Invoice,23/11/2018,CW35823,INV_S000582,CW35823,POP,"34,285.03",PI,Fully Settled,0,3230,General Maintenance Contracts,M71027,Ict - Shared Services Project,Include,Over 25k
Department of Health,Chelsea & Westminster NHS Foundation Trust,29/11/2018,M.S.S.E. - Routine Purchases,Pathology And Blood,Nhs Blood Transplant,1274530,"76,319.52",,1274530,CL1,29/11/2018,NATIOBLO,Nhs Blood Transplant,NM,NHS MISCELLANEOUS,Invoice,15/11/2018,CW64303,875562,CW64303,POP,"76,319.52",PI,Fully Settled,0,2901,M.S.S.E. - Routine Purchases,M71521,Pathology And Blood,Include,Over 25k
Department of Health,Chelsea & Westminster NHS Foundation Trust,29/11/2018,M.S.S.E. - Routine Purchases,Path Central Purchasing,Nhs Blood Transplant,1274532,"57,606.79",,1274532,CL1,29/11/2018,NATIOBLO,Nhs Blood Transplant,NM,NHS MISCELLANEOUS,Invoice,15/11/2018,CW64645,875579,CW64645,POP,"57,606.79",PI,Fully Settled,0,2901,M.S.S.E. - Routine Purchases,340310,Path Central Purchasing,Include,Over 25k
Department of Health,Chelsea & Westminster NHS Foundation Trust,29/11/2018,Rates & Council Tax,Trust General Services,Royal Borough Of Kensington And Chelsea,1279549,"215,973.00",,1279549,CL1,29/11/2018,E5016X99,Royal Borough Of Kensington And Chelsea,LA,NON NHS LOCAL AUTHORITY,Invoice,08/11/2018,6.02E+11,629848928 NOV18,,NON POP,"215,973.00",PI,Fully Settled,0,5810,Rates & Council Tax,M70992,Trust General Services,Include,Over 25k
Department of Health,Chelsea & Westminster NHS Foundation Trust,29/11/2018,Rates & Council Tax,Trustwide,Westminster City Council,1279554,"25,907.00",,1279554,CL1,29/11/2018,E5022X99,Westminster City Council,LA,NON NHS LOCAL AUTHORITY,Invoice,01/11/2018,4.00E+11,402284754 NOV,,NON POP,"25,907.00",PI,Fully Settled,0,5810,Rates & Council Tax,M71002,Dean St Facilities,Include,Over 25k
Department of Health,Chelsea & Westminster NHS Foundation Trust,29/11/2018,Cw Gbs Rbs,Chelsea and Westminster Hospital,Liaison Financial Services Ltd,1279559,"(40,014.53)",,1279559,CL1,29/11/2018,LIA00499,Liaison Financial Services Ltd,CO,NON NHS COMPANY,Credit,14/11/2018,4.34E+04,33 / 2018-19A,,NON POP,"(40,014.53)",PC,Fully Settled,0,9410,Cw Gbs Rbs,C00000,Candw Balance Sheet,Include,Over 25k
Department of Health,Chelsea & Westminster NHS Foundation Trust,29/11/2018,Staff Flow Central Account,Chelsea and Westminster Hospital,Liaison Financial Services Ltd,1279560,"40,014.53",,1279560,CL1,29/11/2018,LIA00499,Liaison Financial Services Ltd,CO,NON NHS COMPANY,Invoice,43418,43405,33 / 2018-19,,NON POP,"40,014.53",PI,Fully Settled,0,9515,Staff Flow Central Account,C00000,Candw Balance Sheet,Include,Over 25k
Department of Health,Chelsea & Westminster NHS Foundation Trust,29/11/2018,Cw Gbs Rbs,Chelsea and Westminster Hospital,Liaison Financial Services Ltd,1279563,"(32,259.20)",,1279563,CL1,29/11/2018,LIA00499,Liaison Financial Services Ltd,CO,NON NHS COMPANY,Credit,43402,43405,31/ 2018-19A,,NON POP,"(32,259.20)",PC,Fully Settled,0,9410,Cw Gbs Rbs,C00000,Candw Balance Sheet,Include,Over 25k
Department of Health,Chelsea & Westminster NHS Foundation Trust,29/11/2018,Staff Flow Central Account,Chelsea and Westminster Hospital,Liaison Financial Services Ltd,1279565,"32,259.20",,1279565,CL1,29/11/2018,LIA00499,Liaison Financial Services Ltd,CO,NON NHS COMPANY,Invoice,43402,43405,31/ 2018-19,,NON POP,32259.2,PI,Fully Settled,0,9515,Staff Flow Central Account,C00000,Candw Balance Sheet,Include,Over 25k
Department of Health,Chelsea & Westminster NHS Foundation Trust,29/11/2018,Rates & Council Tax,Trustwide,Hounslow London Borough Council,1279567,"87,723.00",,1279567,CL1,29/11/2018,LONDO,Hounslow London Borough Council,LA,NON NHS LOCAL AUTHORITY,Invoice,43405,43405,921515548NOV18,,NON POP,87723,PI,Fully Settled,0,5810,Rates & Council Tax,M71004,34-35 Dean Street,Include,Over 25k
Department of Health,Chelsea & Westminster NHS Foundation Trust,29/11/2018,Insurance contribution,Legal Services,Nhs Resolution C/O Nhs Litigation Authority,1279584,"2,288,755.20",,1279584,CL1,29/11/2018,NHSLITIG,Nhs Resolution C/O Nhs Litigation Authority,NM,NHS MISCELLANEOUS,Invoice,43419,43405,SICX/00435828,,NON POP,2288755.2,PI,Fully Settled,0,6217,Contribution Nhsla Cnst,M70902,Legal Services,Include,Over 25k
,,,,,,,"17,107,649.80",,,,,,,,,,,,,,,"17,107,649.80",,,,,,,,,
